Workbook

Sheet Attachment 1
A2: CONTRACTOR TYPE | B2: Strata ID / Contractor Name | C2: Provider Type* | D2: CMS Jurisdiction** | E2: State Strata** | F2: Total Population | G2: % of Contractor | H2: Base Sample | I2: Over Sample | J2: Total Sample
A4: FI | B4: 01: Assoc Hosp Serv, ME | C4: 1: Hospital | D4: 14 | E4: ME | F4: 50 | G4: =F4/(SUM(F$4:F$13)) -> 0.2127659574 | H4: 25 | I4: 0 | J4: 25
A5: FI | B5: 01: Assoc Hosp Serv, ME | C5: 2: SNF | D5: 14 | E5: ME | F5: 99 | G5: 0.4212765957 | H5: 50 | I5: 0 | J5: 50
A6: FI | B6: 01: Assoc Hosp Serv, ME | C6: 3: RHC | D6: 14 | E6: ME | F6: 47 | G6: 0.2 | H6: 24 | I6: 0 | J6: 24
A7: FI | B7: 01: Assoc Hosp Serv, ME | C7: 5: FQHC | D7: 14 | E7: MA | F7: 1 | G7: 0.004255319149 | H7: 1 | I7: 0 | J7: 1
A8: FI | B8: 01: Assoc Hosp Serv, ME | C8: 8: Other | D8: 13 | E8: CT | F8: 17 | G8: 0.07234042553 | H8: 9 | I8: 0 | J8: 9
A9: FI | B9: 01: Assoc Hosp Serv, ME | C9: 8: Other | D9: 14 | E9: MA | F9: 3 | G9: 0.01276595745 | H9: 2 | I9: 0 | J9: 2
A10: FI | B10: 01: Assoc Hosp Serv, ME | C10: 8: Other | D10: 14 | E10: ME | F10: 12 | G10: 0.05106382979 | H10: 6 | I10: 0 | J10: 6
A11: FI | B11: 01: Assoc Hosp Serv, ME | C11: 8: Other | D11: 14 | E11: NH | F11: 3 | G11: 0.01276595745 | H11: 2 | I11: 0 | J11: 2
A12: FI | B12: 01: Assoc Hosp Serv, ME | C12: 8: Other | D12: 14 | E12: RI | F12: 2 | G12: 0.008510638298 | H12: 1 | I12: 0 | J12: 1
A13: FI | B13: 01: Assoc Hosp Serv, ME | C13: 8: Other | D13: 14 | E13: VT | F13: 1 | G13: 0.004255319149 | H13: 1 | I13: 0 | J13: 1
A14: FI | B14: 02: Assoc Hosp Serv, MA | C14: 1: Hospital | D14: 14 | E14: MA | F14: 94 | G14: =F14/(SUM(F$14:F$24)) -> 0.273255814 | H14: 39 | I14: 0 | J14: 39
A15: FI | B15: 02: Assoc Hosp Serv, MA | C15: 2: SNF | D15: 13 | E15: CT | F15: 4 | G15: 0.01162790698 | H15: 2 | I15: 0 | J15: 2
A16: FI | B16: 02: Assoc Hosp Serv, MA | C16: 2: SNF | D16: 13 | E16: NY | F16: 3 | G16: 0.008720930233 | H16: 1 | I16: 0 | J16: 1
A17: FI | B17: 02: Assoc Hosp Serv, MA | C17: 2: SNF | D17: 14 | E17: MA | F17: 141 | G17: 0.4098837209 | H17: 59 | I17: 0 | J17: 59
A18: FI | B18: 02: Assoc Hosp Serv, MA | C18: 4: ESRD | D18: 12 | E18: NJ | F18: 12 | G18: 0.03488372093 | H18: 5 | I18: 0 | J18: 5
A19: FI | B19: 02: Assoc Hosp Serv, MA | C19: 4: ESRD | D19: 13 | E19: CT | F19: 5 | G19: 0.01453488372 | H19: 2 | I19: 0 | J19: 2
A20: FI | B20: 02: Assoc Hosp Serv, MA | C20: 4: ESRD | D20: 14 | E20: MA | F20: 41 | G20: 0.1191860465 | H20: 17 | I20: 0 | J20: 17
A21: FI | B21: 02: Assoc Hosp Serv, MA | C21: 4: ESRD | D21: 14 | E21: ME | F21: 10 | G21: 0.02906976744 | H21: 4 | I21: 0 | J21: 4
A22: FI | B22: 02: Assoc Hosp Serv, MA | C22: 4: ESRD | D22: 14 | E22: NH | F22: 8 | G22: 0.02325581395 | H22: 3 | I22: 0 | J22: 3
A23: FI | B23: 02: Assoc Hosp Serv, MA | C23: 4: ESRD | D23: 14 | E23: RI | F23: 13 | G23: 0.03779069767 | H23: 5 | I23: 0 | J23: 5
A24: FI | B24: 02: Assoc Hosp Serv, MA | C24: 8: Other | D24: 14 | E24: MA | F24: 13 | G24: 0.03779069767 | H24: 5 | I24: 0 | J24: 5
A25: FI | B25: 03: AdminaStar Federal | C25: 1: Hospital | D25: 06 | E25: IL | F25: 190 | G25: =F25/(SUM(F$132:F$155)) -> 0.1217948718 | H25: 20.55164954 | I25: 9.44835046 | J25: 30
A26: FI | B26: 03: AdminaStar Federal | C26: 1: Hospital | D26: 08 | E26: IN | F26: 167 | G26: 0.1070512821 | H26: 18.06381828 | I26: 11.93618172 | J26: 30
A27: FI | B27: 03: AdminaStar Federal | C27: 1: Hospital | D27: 08 | E27: ZZ | F27: 1 | G27: 0.000641025641 | H27: 0.1081665765 | I27: 0 | J27: 0.1081665765
A28: FI | B28: 03: AdminaStar Federal | C28: 1: Hospital | D28: 15 | E28: KY | F28: 111 | G28: 0.07115384615 | H28: 12.00648999 | I28: 17.99351001 | J28: 30
A29: FI | B29: 03: AdminaStar Federal | C29: 1: Hospital | D29: 15 | E29: OH | F29: 225 | G29: 0.1442307692 | H29: 24.33747972 | I29: 5.662520281 | J29: 30
A30: FI | B30: 03: AdminaStar Federal | C30: 1: Hospital | D30: 99 | E30: ZZ | F30: 7 | G30: 0.004487179487 | H30: 0.7571660357 | I30: 0 | J30: 0.7571660357
A31: FI | B31: 03: AdminaStar Federal | C31: 2: SNF | D31: 06 | E31: IL | F31: 438 | G31: 0.2807692308 | H31: 47.37696052 | I31: 0 | J31: 47.37696052
A32: FI | B32: 03: AdminaStar Federal | C32: 2: SNF | D32: 06 | E32: ZZ | F32: 13 | G32: 0.008333333333 | H32: 1.406165495 | I32: 0 | J32: 1.406165495
A33: FI | B33: 03: AdminaStar Federal | C33: 2: SNF | D33: 08 | E33: IN | F33: 362 | G33: 0.2320512821 | H33: 39.1563007 | I33: 0 | J33: 39.1563007
A34: FI | B34: 03: AdminaStar Federal | C34: 2: SNF | D34: 08 | E34: MI | F34: 71 | G34: 0.04551282051 | H34: 7.679826933 | I34: 22.32017307 | J34: 30
A35: FI | B35: 03: AdminaStar Federal | C35: 2: SNF | D35: 15 | E35: KY | F35: 221 | G35: 0.1416666667 | H35: 23.90481341 | I35: 6.095186587 | J35: 30
A36: FI | B36: 03: AdminaStar Federal | C36: 2: SNF | D36: 15 | E36: OH | F36: 854 | G36: 0.5474358974 | H36: 92.37425635 | I36: 0 | J36: 92.37425635
A37: FI | B37: 03: AdminaStar Federal | C37: 2: SNF | D37: 99 | E37: ZZ | F37: 236 | G37: 0.1512820513 | H37: 25.52731206 | I37: 0 | J37: 25.52731206
A38: FI | B38: 03: AdminaStar Federal | C38: 3: RHC | D38: 99 | E38: ZZ | F38: 94 | G38: 0.06025641026 | H38: 10.16765819 | I38: 19.83234181 | J38: 30
A39: FI | B39: 03: AdminaStar Federal | C39: 4: ESRD | D39: 06 | E39: IL | F39: 72 | G39: 0.04615384615 | H39: 7.78799351 | I39: 22.21200649 | J39: 30
A40: FI | B40: 03: AdminaStar Federal | C40: 4: ESRD | D40: 12 | E40: PA | F40: 62 | G40: 0.03974358974 | H40: 6.706327745 | I40: 23.29367226 | J40: 30
A41: FI | B41: 03: AdminaStar Federal | C41: 4: ESRD | D41: 12 | E41: ZZ | F41: 27 | G41: 0.01730769231 | H41: 2.920497566 | I41: 0 | J41: 2.920497566
A42: FI | B42: 03: AdminaStar Federal | C42: 4: ESRD | D42: 15 | E42: OH | F42: 97 | G42: 0.06217948718 | H42: 10.49215792 | I42: 19.50784208 | J42: 30
A43: FI | B43: 03: AdminaStar Federal | C43: 4: ESRD | D43: 15 | E43: ZZ | F43: 42 | G43: 0.02692307692 | H43: 4.542996214 | I43: 0 | J43: 4.542996214
A44: FI | B44: 03: AdminaStar Federal | C44: 4: ESRD | D44: 99 | E44: ZZ | F44: 100 | G44: 0.0641025641 | H44: 10.81665765 | I44: 0 | J44: 10.81665765
A45: FI | B45: 03: AdminaStar Federal | C45: 8: Other | D45: 06 | E45: IL | F45: 63 | G45: 0.04038461538 | H45: 6.814494321 | I45: 0 | J45: 6.814494321
A46: FI | B46: 03: AdminaStar Federal | C46: 8: Other | D46: 15 | E46: KY | F46: 82 | G46: 0.05256410256 | H46: 8.869659275 | I46: 0 | J46: 8.869659275
A47: FI | B47: 03: AdminaStar Federal | C47: 8: Other | D47: 15 | E47: OH | F47: 109 | G47: 0.06987179487 | H47: 11.79015684 | I47: 0 | J47: 11.79015684
A48: FI | B48: 03: AdminaStar Federal | C48: 8: Other | D48: 99 | E48: ZZ | F48: 54 | G48: 0.03461538462 | H48: 5.840995133 | I48: 0 | J48: 5.840995133
A49: FI | B49: 04: Cahaba GBA | C49: 1: Hospital | D49: 03 | E49: SD | F49: 73 | G49: =F49/(SUM(F$156:F$176)) -> 0.05547112462 | H49: 16.94718514 | I49: 13.05281486 | J49: 30
A50: FI | B50: 04: Cahaba GBA | C50: 1: Hospital | D50: 03 | E50: ZZ | F50: 5 | G50: 0.003799392097 | H50: 1.160766106 | I50: 0 | J50: 1.160766106
A51: FI | B51: 04: Cahaba GBA | C51: 1: Hospital | D51: 05 | E51: IA | F51: 153 | G51: 0.1162613982 | H51: 35.51944283 | I51: 0 | J51: 35.51944283
A52: FI | B52: 04: Cahaba GBA | C52: 1: Hospital | D52: 05 | E52: ZZ | F52: 2 | G52: 0.001519756839 | H52: 0.4643064423 | I52: 0 | J52: 0.4643064423
A53: FI | B53: 04: Cahaba GBA | C53: 1: Hospital | D53: 10 | E53: AL | F53: 112 | G53: 0.08510638298 | H53: 26.00116077 | I53: 3.998839234 | J53: 30
A54: FI | B54: 04: Cahaba GBA | C54: 1: Hospital | D54: 10 | E54: ZZ | F54: 7 | G54: 0.005319148936 | H54: 1.625072548 | I54: 0 | J54: 1.625072548
A55: FI | B55: 04: Cahaba GBA | C55: 1: Hospital | D55: 99 | E55: ZZ | F55: 65 | G55: 0.04939209726 | H55: 15.08995937 | I55: 0 | J55: 15.08995937
A56: FI | B56: 04: Cahaba GBA | C56: 2: SNF | D56: 03 | E56: SD | F56: 66 | G56: 0.05015197568 | H56: 15.32211259 | I56: 14.67788741 | J56: 30
A57: FI | B57: 04: Cahaba GBA | C57: 2: SNF | D57: 03 | E57: ZZ | F57: 22 | G57: 0.01671732523 | H57: 5.107370865 | I57: 0 | J57: 5.107370865
A58: FI | B58: 04: Cahaba GBA | C58: 2: SNF | D58: 05 | E58: IA | F58: 323 | G58: 0.2454407295 | H58: 74.98549042 | I58: 0 | J58: 74.98549042
A59: FI | B59: 04: Cahaba GBA | C59: 2: SNF | D59: 05 | E59: ZZ | F59: 50 | G59: 0.03799392097 | H59: 11.60766106 | I59: 0 | J59: 11.60766106
A60: FI | B60: 04: Cahaba GBA | C60: 2: SNF | D60: 10 | E60: AL | F60: 90 | G60: 0.06838905775 | H60: 20.8937899 | I60: 9.106210099 | J60: 30
A61: FI | B61: 04: Cahaba GBA | C61: 2: SNF | D61: 10 | E61: ZZ | F61: 1 | G61: 0.0007598784195 | H61: 0.2321532211 | I61: 0 | J61: 0.2321532211
A62: FI | B62: 04: Cahaba GBA | C62: 2: SNF | D62: 99 | E62: ZZ | F62: 135 | G62: 0.1025835866 | H62: 31.34068485 | I62: 0 | J62: 31.34068485
A63: FI | B63: 04: Cahaba GBA | C63: 3: RHC | D63: 05 | E63: IA | F63: 69 | G63: 0.05243161094 | H63: 16.01857226 | I63: 13.98142774 | J63: 30
A64: FI | B64: 04: Cahaba GBA | C64: 3: RHC | D64: 05 | E64: ZZ | F64: 4 | G64: 0.003039513678 | H64: 0.9286128845 | I64: 0 | J64: 0.9286128845
A65: FI | B65: 04: Cahaba GBA | C65: 3: RHC | D65: 99 | E65: ZZ | F65: 37 | G65: 0.02811550152 | H65: 8.589669182 | I65: 0 | J65: 8.589669182
A66: FI | B66: 04: Cahaba GBA | C66: 8: Other | D66: 05 | E66: IA | F66: 128 | G66: 0.09726443769 | H66: 29.7156123 | I66: 0 | J66: 29.7156123
A67: FI | B67: 04: Cahaba GBA | C67: 8: Other | D67: 05 | E67: ZZ | F67: 37 | G67: 0.02811550152 | H67: 8.589669182 | I67: 0 | J67: 8.589669182
A68: FI | B68: 04: Cahaba GBA | C68: 8: Other | D68: 10 | E68: ZZ | F68: 76 | G68: 0.05775075988 | H68: 17.64364481 | I68: 0 | J68: 17.64364481
A69: FI | B69: 04: Cahaba GBA | C69: 8: Other | D69: 99 | E69: ZZ | F69: 268 | G69: 0.2036474164 | H69: 62.21706326 | I69: 0 | J69: 62.21706326
A70: FI | B70: 06: PBS / BCBS Arkansas | C70: 1: Hospital | D70: 07 | E70: AR | F70: 88 | G70: =F70/(SUM(F$25:F$32)) -> 0.07638888889 | H70: 49 | I70: 0 | J70: 49
A71: FI | B71: 06: PBS / BCBS Arkansas | C71: 1: Hospital | D71: 14 | E71: RI | F71: 16 | G71: 0.01388888889 | H71: 9 | I71: 0 | J71: 9
A72: FI | B72: 06: PBS / BCBS Arkansas | C72: 2: SNF | D72: 07 | E72: AR | F72: 137 | G72: 0.1189236111 | H72: 77 | I72: 0 | J72: 77
A73: FI | B73: 06: PBS / BCBS Arkansas | C73: 2: SNF | D73: 14 | E73: RI | F73: 78 | G73: 0.06770833333 | H73: 44 | I73: 0 | J73: 44
A74: FI | B74: 06: PBS / BCBS Arkansas | C74: 3: RHC | D74: 05 | E74: MO | F74: 1 | G74: 0.0008680555556 | H74: 1 | I74: 0 | J74: 1
A75: FI | B75: 06: PBS / BCBS Arkansas | C75: 3: RHC | D75: 07 | E75: AR | F75: 30 | G75: 0.02604166667 | H75: 17 | I75: 0 | J75: 17
A76: FI | B76: 06: PBS / BCBS Arkansas | C76: 8: Other | D76: 07 | E76: AR | F76: 22 | G76: 0.01909722222 | H76: 12 | I76: 0 | J76: 12
A77: FI | B77: 06: PBS / BCBS Arkansas | C77: 8: Other | D77: 14 | E77: RI | F77: 5 | G77: 0.004340277778 | H77: 3 | I77: 0 | J77: 3
A78: FI | B78: 07: First Coast Service | C78: 1: Hospital | D78: 09 | E78: FL | F78: 154 | G78: =F78/(SUM(F$177:F$184)) -> 0.2716049383 | H78: 48.77276326 | I78: 0 | J78: 48.77276326
A79: FI | B79: 07: First Coast Service | C79: 1: Hospital | D79: 99 | E79: ZZ | F79: 16 | G79: 0.02821869489 | H79: 5.067300079 | I79: 0 | J79: 5.067300079
A80: FI | B80: 07: First Coast Service | C80: 2: SNF | D80: 09 | E80: FL | F80: 410 | G80: 0.7231040564 | H80: 129.8495645 | I80: 0 | J80: 129.8495645
A81: FI | B81: 07: First Coast Service | C81: 2: SNF | D81: 99 | E81: ZZ | F81: 3 | G81: 0.005291005291 | H81: 0.9501187648 | I81: 0 | J81: 0.9501187648
A82: FI | B82: 07: First Coast Service | C82: 4: ESRD | D82: 09 | E82: FL | F82: 68 | G82: 0.1199294533 | H82: 21.53602534 | I82: 8.463974663 | J82: 30
A83: FI | B83: 07: First Coast Service | C83: 4: ESRD | D83: 99 | E83: ZZ | F83: 4 | G83: 0.007054673721 | H83: 1.26682502 | I83: 0 | J83: 1.26682502
A84: FI | B84: 07: First Coast Service | C84: 8: Other | D84: 09 | E84: FL | F84: 603 | G84: 1.063492063 | H84: 190.9738717 | I84: 0 | J84: 190.9738717
A85: FI | B85: 07: First Coast Service | C85: 8: Other | D85: 99 | E85: ZZ | F85: 5 | G85: 0.008818342152 | H85: 1.583531275 | I85: 0 | J85: 1.583531275
A86: FI | B86: 08: BCBS Georgia | C86: 1: Hospital | D86: 10 | E86: GA | F86: 144 | G86: =F86/(SUM(F$33:F$76)) -> 0.03102779573 | H86: 26 | I86: 0 | J86: 26
A87: FI | B87: 08: BCBS Georgia | C87: 2: SNF | D87: 10 | E87: GA | F87: 101 | G87: 0.02176255117 | H87: 18 | I87: 0 | J87: 18
A88: FI | B88: 08: BCBS Georgia | C88: 3: RHC | D88: 10 | E88: GA | F88: 45 | G88: 0.009696186167 | H88: 8 | I88: 0 | J88: 8
A89: FI | B89: 08: BCBS Georgia | C89: 4: ESRD | D89: 01 | E89: CA | F89: 89 | G89: 0.01917690153 | H89: 16 | I89: 0 | J89: 16
A90: FI | B90: 08: BCBS Georgia | C90: 4: ESRD | D90: 01 | E90: NV | F90: 4 | G90: 0.0008618832148 | H90: 1 | I90: 0 | J90: 1
A91: FI | B91: 08: BCBS Georgia | C91: 4: ESRD | D91: 02 | E91: OR | F91: 4 | G91: 0.0008618832148 | H91: 1 | I91: 0 | J91: 1
A92: FI | B92: 08: BCBS Georgia | C92: 4: ESRD | D92: 03 | E92: AZ | F92: 12 | G92: 0.002585649644 | H92: 2 | I92: 0 | J92: 2
A93: FI | B93: 08: BCBS Georgia | C93: 4: ESRD | D93: 03 | E93: MT | F93: 4 | G93: 0.0008618832148 | H93: 1 | I93: 0 | J93: 1
A94: FI | B94: 08: BCBS Georgia | C94: 4: ESRD | D94: 04 | E94: CO | F94: 2 | G94: 0.0004309416074 | H94: 0 | I94: 0 | J94: 0
A95: FI | B95: 08: BCBS Georgia | C95: 4: ESRD | D95: 04 | E95: NM | F95: 8 | G95: 0.00172376643 | H95: 1 | I95: 0 | J95: 1
A96: FI | B96: 08: BCBS Georgia | C96: 4: ESRD | D96: 04 | E96: OK | F96: 5 | G96: 0.001077354019 | H96: 1 | I96: 0 | J96: 1
A97: FI | B97: 08: BCBS Georgia | C97: 4: ESRD | D97: 04 | E97: TX | F97: 39 | G97: 0.008403361345 | H97: 7 | I97: 0 | J97: 7
A98: FI | B98: 08: BCBS Georgia | C98: 4: ESRD | D98: 05 | E98: IA | F98: 2 | G98: 0.0004309416074 | H98: 0 | I98: 0 | J98: 0
A99: FI | B99: 08: BCBS Georgia | C99: 4: ESRD | D99: 05 | E99: KS | F99: 5 | G99: 0.001077354019 | H99: 1 | I99: 0 | J99: 1
A100: FI | B100: 08: BCBS Georgia | C100: 4: ESRD | D100: 05 | E100: MO | F100: 41 | G100: 0.008834302952 | H100: 7 | I100: 0 | J100: 7
A101: FI | B101: 08: BCBS Georgia | C101: 4: ESRD | D101: 05 | E101: NE | F101: 9 | G101: 0.001939237233 | H101: 2 | I101: 0 | J101: 2
A102: FI | B102: 08: BCBS Georgia | C102: 4: ESRD | D102: 06 | E102: IL | F102: 15 | G102: 0.003232062056 | H102: 3 | I102: 0 | J102: 3
A103: FI | B103: 08: BCBS Georgia | C103: 4: ESRD | D103: 06 | E103: WI | F103: 16 | G103: 0.003447532859 | H103: 3 | I103: 0 | J103: 3
A104: FI | B104: 08: BCBS Georgia | C104: 4: ESRD | D104: 07 | E104: AR | F104: 1 | G104: 0.0002154708037 | H104: 0 | I104: 0 | J104: 0
A105: FI | B105: 08: BCBS Georgia | C105: 4: ESRD | D105: 07 | E105: LA | F105: 35 | G105: 0.00754147813 | H105: 6 | I105: 0 | J105: 6
A106: FI | B106: 08: BCBS Georgia | C106: 4: ESRD | D106: 07 | E106: MS | F106: 5 | G106: 0.001077354019 | H106: 1 | I106: 0 | J106: 1
A107: FI | B107: 08: BCBS Georgia | C107: 4: ESRD | D107: 08 | E107: IN | F107: 4 | G107: 0.0008618832148 | H107: 1 | I107: 0 | J107: 1
A108: FI | B108: 08: BCBS Georgia | C108: 4: ESRD | D108: 08 | E108: MI | F108: 17 | G108: 0.003663003663 | H108: 3 | I108: 0 | J108: 3
A109: FI | B109: 08: BCBS Georgia | C109: 4: ESRD | D109: 09 | E109: FL | F109: 65 | G109: 0.01400560224 | H109: 12 | I109: 0 | J109: 12
A110: FI | B110: 08: BCBS Georgia | C110: 4: ESRD | D110: 10 | E110: AL | F110: 53 | G110: 0.0114199526 | H110: 10 | I110: 0 | J110: 10
A111: FI | B111: 08: BCBS Georgia | C111: 4: ESRD | D111: 10 | E111: GA | F111: 124 | G111: 0.02671837966 | H111: 22 | I111: 0 | J111: 22
A112: FI | B112: 08: BCBS Georgia | C112: 4: ESRD | D112: 10 | E112: TN | F112: 61 | G112: 0.01314371903 | H112: 11 | I112: 0 | J112: 11
A113: FI | B113: 08: BCBS Georgia | C113: 4: ESRD | D113: 11 | E113: NC | F113: 18 | G113: 0.003878474467 | H113: 3 | I113: 0 | J113: 3
A114: FI | B114: 08: BCBS Georgia | C114: 4: ESRD | D114: 11 | E114: SC | F114: 39 | G114: 0.008403361345 | H114: 7 | I114: 0 | J114: 7
A115: FI | B115: 08: BCBS Georgia | C115: 4: ESRD | D115: 11 | E115: VA | F115: 27 | G115: 0.0058177117 | H115: 5 | I115: 0 | J115: 5
A116: FI | B116: 08: BCBS Georgia | C116: 4: ESRD | D116: 11 | E116: WV | F116: 2 | G116: 0.0004309416074 | H116: 0 | I116: 0 | J116: 0
A117: FI | B117: 08: BCBS Georgia | C117: 4: ESRD | D117: 12 | E117: DC | F117: 4 | G117: 0.0008618832148 | H117: 1 | I117: 0 | J117: 1
A118: FI | B118: 08: BCBS Georgia | C118: 4: ESRD | D118: 12 | E118: MD | F118: 26 | G118: 0.005602240896 | H118: 5 | I118: 0 | J118: 5
A119: FI | B119: 08: BCBS Georgia | C119: 4: ESRD | D119: 12 | E119: NJ | F119: 29 | G119: 0.006248653307 | H119: 5 | I119: 0 | J119: 5
A120: FI | B120: 08: BCBS Georgia | C120: 4: ESRD | D120: 12 | E120: PA | F120: 59 | G120: 0.01271277742 | H120: 11 | I120: 0 | J120: 11
A121: FI | B121: 08: BCBS Georgia | C121: 4: ESRD | D121: 13 | E121: CT | F121: 14 | G121: 0.003016591252 | H121: 3 | I121: 0 | J121: 3
A122: FI | B122: 08: BCBS Georgia | C122: 4: ESRD | D122: 13 | E122: NY | F122: 12 | G122: 0.002585649644 | H122: 2 | I122: 0 | J122: 2
A123: FI | B123: 08: BCBS Georgia | C123: 4: ESRD | D123: 14 | E123: MA | F123: 19 | G123: 0.00409394527 | H123: 3 | I123: 0 | J123: 3
A124: FI | B124: 08: BCBS Georgia | C124: 4: ESRD | D124: 14 | E124: ME | F124: 2 | G124: 0.0004309416074 | H124: 0 | I124: 0 | J124: 0
A125: FI | B125: 08: BCBS Georgia | C125: 4: ESRD | D125: 14 | E125: NH | F125: 1 | G125: 0.0002154708037 | H125: 0 | I125: 0 | J125: 0
A126: FI | B126: 08: BCBS Georgia | C126: 4: ESRD | D126: 14 | E126: RI | F126: 2 | G126: 0.0004309416074 | H126: 0 | I126: 0 | J126: 0
A127: FI | B127: 08: BCBS Georgia | C127: 4: ESRD | D127: 15 | E127: KY | F127: 18 | G127: 0.003878474467 | H127: 3 | I127: 0 | J127: 3
A128: FI | B128: 08: BCBS Georgia | C128: 4: ESRD | D128: 15 | E128: OH | F128: 34 | G128: 0.007326007326 | H128: 6 | I128: 0 | J128: 6
A129: FI | B129: 08: BCBS Georgia | C129: 8: Other | D129: 10 | E129: GA | F129: 59 | G129: 0.01271277742 | H129: 11 | I129: 0 | J129: 11
A130: FI | B130: 09: BCBS of Kansas | C130: 1: Hospital | D130: 05 | E130: KS | F130: 147 | G130: =F130/(SUM(F$77:F$86)) -> 0.1041076487 | H130: 85 | I130: 0 | J130: 85
A131: FI | B131: 09: BCBS of Kansas | C131: 2: SNF | D131: 04 | E131: OK | F131: 1 | G131: 0.0007082152975 | H131: 1 | I131: 0 | J131: 1
A132: FI | B132: 09: BCBS of Kansas | C132: 2: SNF | D132: 05 | E132: KS | F132: 130 | G132: 0.09206798867 | H132: 75 | I132: 0 | J132: 75
A133: FI | B133: 09: BCBS of Kansas | C133: 2: SNF | D133: 05 | E133: MO | F133: 6 | G133: 0.004249291785 | H133: 3 | I133: 0 | J133: 3
A134: FI | B134: 09: BCBS of Kansas | C134: 2: SNF | D134: 07 | E134: AR | F134: 1 | G134: 0.0007082152975 | H134: 1 | I134: 0 | J134: 1
A135: FI | B135: 09: BCBS of Kansas | C135: 3: RHC | D135: 05 | E135: KS | F135: 102 | G135: 0.07223796034 | H135: 59 | I135: 0 | J135: 59
A136: FI | B136: 09: BCBS of Kansas | C136: 3: RHC | D136: 05 | E136: NE | F136: 1 | G136: 0.0007082152975 | H136: 1 | I136: 0 | J136: 1
A137: FI | B137: 09: BCBS of Kansas | C137: 4: ESRD | D137: 05 | E137: KS | F137: 11 | G137: 0.007790368272 | H137: 6 | I137: 0 | J137: 6
A138: FI | B138: 09: BCBS of Kansas | C138: 8: Other | D138: 05 | E138: KS | F138: 15 | G138: 0.01062322946 | H138: 9 | I138: 0 | J138: 9
A139: FI | B139: 09: BCBS of Kansas | C139: 8: Other | D139: 05 | E139: MO | F139: 1 | G139: 0.0007082152975 | H139: 1 | I139: 0 | J139: 1
A140: FI | B140: 11: Trispan Health Service | C140: 1: Hospital | D140: 05 | E140: MO | F140: 64 | G140: =F140/(SUM(F$185:F$203)) -> 0.03585434174 | H140: 17.65517241 | I140: 12.34482759 | J140: 30
A141: FI | B141: 11: Trispan Health Service | C141: 1: Hospital | D141: 07 | E141: LA | F141: 162 | G141: 0.09075630252 | H141: 44.68965517 | I141: 0 | J141: 44.68965517
A142: FI | B142: 11: Trispan Health Service | C142: 1: Hospital | D142: 07 | E142: MS | F142: 95 | G142: 0.05322128852 | H142: 26.20689655 | I142: 3.793103448 | J142: 30
A143: FI | B143: 11: Trispan Health Service | C143: 1: Hospital | D143: 99 | E143: ZZ | F143: 5 | G143: 0.002801120448 | H143: 1.379310345 | I143: 0 | J143: 1.379310345
A144: FI | B144: 11: Trispan Health Service | C144: 2: SNF | D144: 05 | E144: MO | F144: 271 | G144: 0.1518207283 | H144: 74.75862069 | I144: 0 | J144: 74.75862069
A145: FI | B145: 11: Trispan Health Service | C145: 2: SNF | D145: 05 | E145: ZZ | F145: 10 | G145: 0.005602240896 | H145: 2.75862069 | I145: 0 | J145: 2.75862069
A146: FI | B146: 11: Trispan Health Service | C146: 2: SNF | D146: 07 | E146: LA | F146: 248 | G146: 0.1389355742 | H146: 68.4137931 | I146: 0 | J146: 68.4137931
A147: FI | B147: 11: Trispan Health Service | C147: 2: SNF | D147: 07 | E147: MS | F147: 129 | G147: 0.07226890756 | H147: 35.5862069 | I147: 0 | J147: 35.5862069
A148: FI | B148: 11: Trispan Health Service | C148: 2: SNF | D148: 07 | E148: ZZ | F148: 29 | G148: 0.0162464986 | H148: 8 | I148: 0 | J148: 8
A149: FI | B149: 11: Trispan Health Service | C149: 2: SNF | D149: 99 | E149: ZZ | F149: 39 | G149: 0.0218487395 | H149: 10.75862069 | I149: 0 | J149: 10.75862069
A150: FI | B150: 11: Trispan Health Service | C150: 3: RHC | D150: 05 | E150: MO | F150: 80 | G150: 0.04481792717 | H150: 22.06896552 | I150: 7.931034483 | J150: 30
A151: FI | B151: 11: Trispan Health Service | C151: 3: RHC | D151: 07 | E151: MS | F151: 64 | G151: 0.03585434174 | H151: 17.65517241 | I151: 12.34482759 | J151: 30
A152: FI | B152: 11: Trispan Health Service | C152: 3: RHC | D152: 07 | E152: ZZ | F152: 36 | G152: 0.02016806723 | H152: 9.931034483 | I152: 0 | J152: 9.931034483
A153: FI | B153: 11: Trispan Health Service | C153: 3: RHC | D153: 99 | E153: ZZ | F153: 2 | G153: 0.001120448179 | H153: 0.5517241379 | I153: 0 | J153: 0.5517241379
A154: FI | B154: 11: Trispan Health Service | C154: 4: ESRD | D154: 07 | E154: ZZ | F154: 50 | G154: 0.02801120448 | H154: 13.79310345 | I154: 16.20689655 | J154: 30
A155: FI | B155: 11: Trispan Health Service | C155: 4: ESRD | D155: 99 | E155: ZZ | F155: 9 | G155: 0.005042016807 | H155: 2.482758621 | I155: 0 | J155: 2.482758621
A156: FI | B156: 11: Trispan Health Service | C156: 8: Other | D156: 07 | E156: LA | F156: 81 | G156: 0.04537815126 | H156: 22.34482759 | I156: 0 | J156: 22.34482759
A157: FI | B157: 11: Trispan Health Service | C157: 8: Other | D157: 07 | E157: ZZ | F157: 46 | G157: 0.02577030812 | H157: 12.68965517 | I157: 0 | J157: 12.68965517
A158: FI | B158: 11: Trispan Health Service | C158: 8: Other | D158: 99 | E158: ZZ | F158: 30 | G158: 0.01680672269 | H158: 8.275862069 | I158: 0 | J158: 8.275862069
A159: FI | B159: 13: BCBS Nebraska | C159: 1: Hospital | D159: 05 | E159: NE | F159: 84 | G159: =F159/(SUM(F$87:F$91)) -> 0.3456790123 | H159: 49 | I159: 0 | J159: 49
A160: FI | B160: 13: BCBS Nebraska | C160: 2: SNF | D160: 05 | E160: NE | F160: 11 | G160: =F160/(SUM(F$87:F$91)) -> 0.04526748971 | H160: 6 | I160: 0 | J160: 6
A161: FI | B161: 13: BCBS Nebraska | C161: 3: RHC | D161: 05 | E161: NE | F161: 76 | G161: =F161/(SUM(F$87:F$91)) -> 0.3127572016 | H161: 44 | I161: 0 | J161: 44
A162: FI | B162: 13: BCBS Nebraska | C162: 4: ESRD | D162: 05 | E162: NE | F162: 5 | G162: =F162/(SUM(F$87:F$91)) -> 0.02057613169 | H162: 3 | I162: 0 | J162: 3
A163: FI | B163: 13: BCBS Nebraska | C163: 8: Other | D163: 05 | E163: NE | F163: 6 | G163: =F163/(SUM(F$87:F$91)) -> 0.02469135802 | H163: 3 | I163: 0 | J163: 3
A164: FI | B164: 14: Chisholm Adm Service | C164: 1: Hospital | D164: 04 | E164: OK | F164: 122 | G164: =F164/(SUM(F$92:F$95)) -> 4.692307692 | H164: 67 | I164: 0 | J164: 67
A165: FI | B165: 14: Chisholm Adm Service | C165: 2: SNF | D165: 04 | E165: OK | F165: 22 | G165: =F165/(SUM(F$92:F$95)) -> 0.8461538462 | H165: 12 | I165: 0 | J165: 12
A166: FI | B166: 14: Chisholm Adm Service | C166: 3: RHC | D166: 04 | E166: OK | F166: 21 | G166: =F166/(SUM(F$92:F$95)) -> 0.8076923077 | H166: 12 | I166: 0 | J166: 12
A167: FI | B167: 14: Chisholm Adm Service | C167: 8: Other | D167: 04 | E167: OK | F167: 20 | G167: =F167/(SUM(F$92:F$95)) -> 0.7692307692 | H167: 11 | I167: 0 | J167: 11
A168: FI | B168: 15: Palmetto, GBA | C168: 1: Hospital | D168: 11 | E168: NC | F168: 127 | G168: =F168/(SUM(F$204:F$214)) -> 0.2524850895 | H168: 56.44444444 | I168: 0 | J168: 56.44444444
A169: FI | B169: 15: Palmetto, GBA | C169: 1: Hospital | D169: 11 | E169: SC | F169: 55 | G169: 0.1093439364 | H169: 24.44444444 | I169: 5.555555556 | J169: 30
A170: FI | B170: 15: Palmetto, GBA | C170: 2: SNF | D170: 11 | E170: NC | F170: 293 | G170: 0.5825049702 | H170: 130.2222222 | I170: 0 | J170: 130.2222222
A171: FI | B171: 15: Palmetto, GBA | C171: 2: SNF | D171: 11 | E171: SC | F171: 113 | G171: 0.2246520875 | H171: 50.22222222 | I171: 0 | J171: 50.22222222
A172: FI | B172: 15: Palmetto, GBA | C172: 2: SNF | D172: 11 | E172: ZZ | F172: 4 | G172: 0.007952286282 | H172: 1.777777778 | I172: 0 | J172: 1.777777778
A173: FI | B173: 15: Palmetto, GBA | C173: 2: SNF | D173: 99 | E173: ZZ | F173: 3 | G173: 0.005964214712 | H173: 1.333333333 | I173: 0 | J173: 1.333333333
A174: FI | B174: 15: Palmetto, GBA | C174: 4: ESRD | D174: 11 | E174: NC | F174: 85 | G174: 0.1689860835 | H174: 37.77777778 | I174: 0 | J174: 37.77777778
A175: FI | B175: 15: Palmetto, GBA | C175: 4: ESRD | D175: 11 | E175: ZZ | F175: 45 | G175: 0.08946322068 | H175: 20 | I175: 0 | J175: 20
A176: FI | B176: 15: Palmetto, GBA | C176: 8: Other | D176: 11 | E176: NC | F176: 67 | G176: 0.1332007952 | H176: 29.77777778 | I176: 0 | J176: 29.77777778
A177: FI | B177: 15: Palmetto, GBA | C177: 8: Other | D177: 11 | E177: SC | F177: 55 | G177: 0.1093439364 | H177: 24.44444444 | I177: 0 | J177: 24.44444444
A178: FI | B178: 15: Palmetto, GBA | C178: 8: Other | D178: 99 | E178: ZZ | F178: 53 | G178: 0.1053677932 | H178: 23.55555556 | I178: 0 | J178: 23.55555556
A179: FI | B179: 16: Riverbend, GBA | C179: 1: Hospital | D179: 10 | E179: TN | F179: 118 | G179: =F179/(SUM(F$215:F$248)) -> 0.03184025904 | H179: 17.6119403 | I179: 12.3880597 | J179: 30
A180: FI | B180: 16: Riverbend, GBA | C180: 1: Hospital | D180: 10 | E180: ZZ | F180: 1 | G180: 0.0002698327037 | H180: 0.1492537313 | I180: 0 | J180: 0.1492537313
A181: FI | B181: 16: Riverbend, GBA | C181: 1: Hospital | D181: 12 | E181: NJ | F181: 131 | G181: 0.03534808419 | H181: 19.55223881 | I181: 10.44776119 | J181: 30
A182: FI | B182: 16: Riverbend, GBA | C182: 1: Hospital | D182: 99 | E182: ZZ | F182: 6 | G182: 0.001618996222 | H182: 0.8955223881 | I182: 0 | J182: 0.8955223881
A183: FI | B183: 16: Riverbend, GBA | C183: 2: SNF | D183: 10 | E183: TN | F183: 195 | G183: 0.05261737723 | H183: 29.10447761 | I183: 0.8955223881 | J183: 30
A184: FI | B184: 16: Riverbend, GBA | C184: 2: SNF | D184: 10 | E184: ZZ | F184: 8 | G184: 0.00215866163 | H184: 1.194029851 | I184: 0 | J184: 1.194029851
A185: FI | B185: 16: Riverbend, GBA | C185: 2: SNF | D185: 12 | E185: NJ | F185: 222 | G185: 0.05990286023 | H185: 33.13432836 | I185: 0 | J185: 33.13432836
A186: FI | B186: 16: Riverbend, GBA | C186: 2: SNF | D186: 12 | E186: ZZ | F186: 18 | G186: 0.004856988667 | H186: 2.686567164 | I186: 0 | J186: 2.686567164
A187: FI | B187: 16: Riverbend, GBA | C187: 2: SNF | D187: 99 | E187: ZZ | F187: 268 | G187: 0.0723151646 | H187: 40 | I187: 0 | J187: 40
A188: FI | B188: 16: Riverbend, GBA | C188: 3: RHC | D188: 01 | E188: CA | F188: 129 | G188: 0.03480841878 | H188: 19.25373134 | I188: 10.74626866 | J188: 30
A189: FI | B189: 16: Riverbend, GBA | C189: 3: RHC | D189: 02 | E189: WA | F189: 59 | G189: 0.01592012952 | H189: 8.805970149 | I189: 21.19402985 | J189: 30
A190: FI | B190: 16: Riverbend, GBA | C190: 3: RHC | D190: 02 | E190: ZZ | F190: 56 | G190: 0.01511063141 | H190: 8.358208955 | I190: 0 | J190: 8.358208955
A191: FI | B191: 16: Riverbend, GBA | C191: 3: RHC | D191: 05 | E191: IA | F191: 69 | G191: 0.01861845656 | H191: 10.29850746 | I191: 19.70149254 | J191: 30
A192: FI | B192: 16: Riverbend, GBA | C192: 3: RHC | D192: 05 | E192: KS | F192: 69 | G192: 0.01861845656 | H192: 10.29850746 | I192: 19.70149254 | J192: 30
A193: FI | B193: 16: Riverbend, GBA | C193: 3: RHC | D193: 05 | E193: MO | F193: 153 | G193: 0.04128440367 | H193: 22.8358209 | I193: 7.164179104 | J193: 30
A194: FI | B194: 16: Riverbend, GBA | C194: 3: RHC | D194: 05 | E194: ZZ | F194: 25 | G194: 0.006745817593 | H194: 3.731343284 | I194: 0 | J194: 3.731343284
A195: FI | B195: 16: Riverbend, GBA | C195: 3: RHC | D195: 06 | E195: IL | F195: 147 | G195: 0.03966540745 | H195: 21.94029851 | I195: 8.059701493 | J195: 30
A196: FI | B196: 16: Riverbend, GBA | C196: 3: RHC | D196: 06 | E196: ZZ | F196: 50 | G196: 0.01349163519 | H196: 7.462686567 | I196: 0 | J196: 7.462686567
A197: FI | B197: 16: Riverbend, GBA | C197: 3: RHC | D197: 07 | E197: MS | F197: 71 | G197: 0.01915812196 | H197: 10.59701493 | I197: 19.40298507 | J197: 30
A198: FI | B198: 16: Riverbend, GBA | C198: 3: RHC | D198: 08 | E198: MI | F198: 81 | G198: 0.021856449 | H198: 12.08955224 | I198: 17.91044776 | J198: 30
A199: FI | B199: 16: Riverbend, GBA | C199: 3: RHC | D199: 08 | E199: ZZ | F199: 37 | G199: 0.009983810038 | H199: 5.52238806 | I199: 0 | J199: 5.52238806
A200: FI | B200: 16: Riverbend, GBA | C200: 3: RHC | D200: 09 | E200: FL | F200: 74 | G200: 0.01996762008 | H200: 11.04477612 | I200: 18.95522388 | J200: 30
A201: FI | B201: 16: Riverbend, GBA | C201: 3: RHC | D201: 10 | E201: ZZ | F201: 116 | G201: 0.03130059363 | H201: 17.31343284 | I201: 12.68656716 | J201: 30
A202: FI | B202: 16: Riverbend, GBA | C202: 3: RHC | D202: 11 | E202: NC | F202: 75 | G202: 0.02023745278 | H202: 11.19402985 | I202: 18.80597015 | J202: 30
... 806 more rows
